bitfinex/quotes_SOLUSD_20241209
["timestamp","ask_amount","ask_price","bid_price","bid_amount"]
[1733767736336,8.41355913,224.4,224.33,8.66453913]
[1733767738940,8.41355913,224.4,224.35,0.25098]
[1733767739670,8.41355913,224.41,224.34,8.41355913]
[1733767739963,8.41355913,224.4,224.34,8.41355913]
[1733767740169,8.41355913,224.38,224.31,8.41355913]
[1733767740463,8.41355913,224.36,224.26,13.32845589]
[1733767740668,8.41355913,224.35,224.29,8.41355913]
[1733767740959,8.41355913,224.35,224.28,8.41355913]
[1733767741657,8.41355913,224.34,224.27,8.41355913]
[1733767741849,8.41355913,224.34,224.28,0.12549]
[1733767742342,8.41355913,224.34,224.26,6.3328]
[1733767742343,8.41355913,224.33,224.26,6.3328]
[1733767742550,8.41355913,224.31,224.24,9.92985913]
[1733767742738,0.83572809,224.39,224.24,9.92985913]
[1733767742739,8.41355913,224.3,224.24,1.5163]
[1733767742938,8.41355913,224.29,224.24,1.5163]
[1733767743139,8.41355913,224.29,224.25,0.12549]
[1733767743745,20.83596434,224.37,224.25,0.12549]
[1733767743954,8.41355913,224.32,224.25,0.25098]
[1733767744149,20.83596434,224.37,224.27,0.12549]
[1733767744150,8.41355913,224.33,224.27,0.12549]
[1733767744337,8.41355913,224.31,224.25,0.12549]
[1733767744756,8.41355913,224.3,224.25,0.12549]
[1733767744946,8.41355913,224.29,224.25,0.12549]
[1733767745273,8.41355913,224.31,224.25,0.12549]
[1733767745740,8.41355913,224.3,224.25,0.12549]
[1733767746765,8.41355913,224.32,224.25,0.12549]
[1733767746968,8.41355913,224.31,224.25,0.12549]
[1733767747877,8.41355913,224.3,224.25,0.12549]
[1733767748943,8.41355913,224.3,224.24,1.5163]
[1733767749363,8.41355913,224.32,224.24,9.92985913]
[1733767749552,9.24954026,224.31,224.24,1.5163]
[1733767750077,8.41355913,224.3,224.24,1.5163]
[1733767750676,8.41355913,224.31,224.24,1.5163]
[1733767750849,8.41355913,224.32,224.25,0.12549]
[1733767751485,8.41355913,224.33,224.25,8.66453913]
[1733767752281,8.41355913,224.32,224.25,0.25098]
[1733767752465,8.41355913,224.31,224.25,0.25098]
[1733767753177,0.83598107,224.36,224.25,8.66453913]
[1733767753379,8.41355913,224.34,224.27,0.25098]
[1733767753847,0.83580536,224.39,224.3,0.12549]
[1733767754048,8.41355913,224.36,224.3,0.12549]
[1733767754267,8.41355913,224.37,224.3,0.12549]
[1733767755185,8.41355913,224.37,224.31,0.12549]
[1733767755899,0.83572514,224.42,224.32,8.66453913]
[1733767756058,8.41355913,224.4,224.34,0.12549]
[1733767756392,8.41355913,224.41,224.34,8.66453913]
[1733767756905,8.41355913,224.4,224.34,0.25098]
[1733767758545,1.37376314,224.47,224.34,0.25098]
[1733767758785,8.41355913,224.4,224.34,0.25098]
[1733767759753,8.41355913,224.39,224.32,1.6258]
[1733767759949,0.83549807,224.45,224.33,8.66453913]
[1733767760279,8.41355913,224.4,224.33,8.66453913]
[1733767760871,8.41355913,224.39,224.33,0.25098]
[1733767761511,8.41355913,224.38,224.33,0.25098]
[1733767761883,0.83549807,224.45,224.32,1.6258]
[1733767761884,8.41355913,224.35,224.32,1.6258]
[1733767762317,8.41355913,224.36,224.32,1.6258]
[1733767763337,8.41355913,224.34,224.29,0.12549]
[1733767763615,8.41355913,224.34,224.28,0.12549]
[1733767764071,8.41355913,224.35,224.29,0.12549]
[1733767764280,8.41355913,224.35,224.29,0.25098]
[1733767765228,8.41355913,224.33,224.28,0.12549]
[1733767765893,8.41355913,224.33,224.27,0.25098]
[1733767767311,8.41355913,224.31,224.27,0.25098]
[1733767767490,8.41355913,224.31,224.27,0.12549]
[1733767768902,8.41355913,224.29,224.22,8.41355913]
[1733767769208,8.41355913,224.29,224.21,10.07715913]
[1733767769378,8.41355913,224.29,224.22,8.41355913]
[1733767769578,8.41355913,224.29,224.23,0.12549]
[1733767770200,8.41355913,224.3,224.24,0.12549]
[1733767770715,8.41355913,224.31,224.24,0.25098]
[1733767771291,2.43929894,224.39,224.24,0.25098]
[1733767771292,8.41355913,224.3,224.24,0.25098]
[1733767771675,8.41355913,224.29,224.22,8.66453913]
[1733767773476,8.41355913,224.28,224.22,0.25098]
[1733767773909,8.41355913,224.24,224.21,1.6636]
[1733767774212,8.41355913,224.27,224.21,1.6636]
[1733767774415,8.41355913,224.27,224.22,0.12549]
[1733767774590,8.41355913,224.29,224.22,8.53904913]
[1733767774777,20.0,224.37,224.25,0.12549]
[1733767774977,8.41355913,224.31,224.25,0.12549]
[1733767775178,8.41355913,224.33,224.25,8.53904913]
[1733767775378,8.41355913,224.33,224.27,0.12549]
[1733767775797,8.41355913,224.34,224.27,8.53904913]
[1733767776002,8.41355913,224.34,224.28,0.12549]
[1733767776279,8.41355913,224.35,224.28,0.12549]
[1733767776703,8.41355913,224.34,224.28,0.12549]
[1733767777426,8.41355913,224.35,224.29,0.12549]
[1733767777727,8.41355913,224.34,224.29,0.25098]
[1733767778008,8.41355913,224.3,224.23,8.53904913]
[1733767778307,8.41355913,224.31,224.24,0.12549]
[1733767780102,8.41355913,224.3,224.24,0.25098]
[1733767780480,8.41355913,224.31,224.24,8.53904913]
[1733767780686,8.41355913,224.31,224.25,0.12549]
[1733767780893,8.41355913,224.29,224.25,0.12549]
[1733767781096,8.41355913,224.28,224.22,0.12549]
[1733767781302,8.41355913,224.28,224.22,0.25098]
[1733767782297,8.41355913,224.29,224.22,0.25098]
[1733767782812,8.41355913,224.28,224.22,0.25098]
[1733767783019,8.41355913,224.26,224.22,0.12549]
[1733767783524,2.42130396,224.36,224.21,1.6636]
[1733767783525,8.41355913,224.25,224.21,1.6636]
[1733767784318,8.41355913,224.26,224.21,1.6636]
[1733767786314,7.16355913,224.26,224.21,1.6636]
[1733767788001,8.41355913,224.25,224.21,1.6636]
[1733767788190,8.41355913,224.24,224.21,1.6636]
[1733767788392,8.41355913,224.25,224.21,1.6636]
[1733767789995,8.41355913,224.22,224.16,1.504]
[1733767790198,8.41355913,224.21,224.16,1.504]
[1733767790400,8.41355913,224.2,224.17,0.12549]
[1733767792751,8.41355913,224.21,224.17,0.12549]
[1733767794336,8.41355913,224.2,224.17,0.12549]
[1733767795707,8.41355913,224.22,224.17,0.12549]
[1733767795919,8.41355913,224.21,224.17,0.12549]
[1733767798676,8.41355913,224.22,224.17,0.12549]
[1733767798876,20.0,224.26,224.18,0.12549]
[1733767799047,8.41355913,224.26,224.21,0.25098]
[1733767799875,0.83604141,224.35,224.21,0.25098]
[1733767800077,8.41355913,224.27,224.21,0.25098]
[1733767801656,8.41355913,224.24,224.21,0.12549]
[1733767802152,8.41355913,224.25,224.19,0.25098]
[1733767802348,8.41355913,224.24,224.19,0.12549]
[1733767803173,8.41355913,224.24,224.17,0.25098]
[1733767803474,8.41355913,224.24,224.17,8.66453913]
[1733767804778,8.41355913,224.26,224.19,8.66453913]
[1733767804956,8.41355913,224.27,224.19,8.66453913]
[1733767805149,8.41355913,224.25,224.19,0.25098]
[1733767805485,8.41355913,224.24,224.19,0.25098]
[1733767805975,8.41355913,224.25,224.19,0.25098]
[1733767810282,8.41355913,224.26,224.19,8.66453913]
[1733767810477,0.83610419,224.35,224.19,8.66453913]
[1733767810478,8.41355913,224.27,224.2,8.41355913]
[1733767810678,8.41355913,224.3,224.24,0.12549]
[1733767811180,8.41355913,224.31,224.24,8.53904913]
[1733767811565,8.41355913,224.32,224.24,8.53904913]
[1733767812160,8.41355913,224.32,224.25,0.12549]
[1733767812364,8.41355913,224.32,224.26,0.12549]
[1733767813252,8.41355913,224.33,224.26,0.12549]
[1733767815373,8.41355913,224.32,224.26,0.12549]
[1733767816188,8.41355913,224.33,224.26,8.53904913]
[1733767816495,8.41355913,224.33,224.27,0.12549]
[1733767816987,8.41355913,224.29,224.26,0.25098]
[1733767817283,8.41355913,224.28,224.25,1.5614]
[1733767821184,8.41355913,224.28,224.21,6.3567]
[1733767821185,8.41355913,224.27,224.22,0.12549]
[1733767821387,20.83597651,224.36,224.22,0.12549]
[1733767821679,8.41355913,224.27,224.22,0.25098]
[1733767821989,8.41355913,224.24,224.2,1.5236]
[1733767822189,6.4103,224.33,224.2,1.5236]
[1733767822190,8.41355913,224.25,224.2,1.5236]
[1733767822493,8.41355913,224.26,224.21,0.12549]
[1733767822889,8.41355913,224.27,224.21,0.12549]
[1733767823090,8.41355913,224.29,224.21,0.12549]
[1733767823389,8.41355913,224.29,224.21,0.25098]
[1733767823767,28.41355913,224.3,224.23,0.25098]
[1733767824293,8.41355913,224.28,224.23,0.12549]
[1733767824620,20.0,224.35,224.21,0.25098]
[1733767824621,8.41355913,224.26,224.21,0.25098]
[1733767825365,8.41355913,224.25,224.21,0.25098]
[1733767827170,8.41355913,224.26,224.21,0.25098]
[1733767828285,8.41355913,224.28,224.21,8.66453913]
[1733767828685,8.41355913,224.29,224.23,0.25098]
[1733767830271,0.83601826,224.34,224.24,8.66453913]
[1733767830475,6.6267,224.38,224.21,0.12549]
[1733767830476,8.41355913,224.33,224.27,0.12549]
[1733767830669,0.8358975,224.37,224.27,8.66453913]
[1733767830865,1.5736,224.4,224.22,26.77]
[1733767830866,0.83583896,224.39,224.29,0.25098]
[1733767831091,8.41355913,224.36,224.29,0.25098]
[1733767832020,8.41355913,224.39,224.32,0.25098]
[1733767832870,8.41355913,224.38,224.32,0.25098]
[1733767833290,8.41355913,224.34,224.29,0.12549]
[1733767833491,8.41355913,224.33,224.29,0.12549]
[1733767833696,8.41355913,224.33,224.28,1.51]
[1733767834268,0.83567688,224.37,224.28,1.51]
[1733767834269,8.41355913,224.34,224.29,0.12549]
[1733767834771,8.41355913,224.34,224.28,1.51]
[1733767834772,8.41355913,224.32,224.28,1.51]
[1733767834968,8.41355913,224.34,224.29,0.12549]
[1733767835174,8.41355913,224.35,224.29,0.12549]
[1733767837392,8.41355913,224.34,224.29,0.12549]
[1733767839314,8.41355913,224.33,224.29,0.12549]
[1733767839633,8.41355913,224.34,224.29,0.12549]
[1733767840908,20.0,224.37,224.29,0.25098]
[1733767841079,8.41355913,224.35,224.29,0.25098]
[1733767841589,8.41355913,224.36,224.29,8.66453913]
[1733767843111,8.41355913,224.38,224.32,0.12549]
[1733767843314,8.41355913,224.38,224.32,0.25098]
[1733767844016,2.35565375,224.45,224.32,0.25098]
[1733767844220,8.41355913,224.4,224.33,0.25098]
[1733767844525,0.5381929,224.47,224.35,0.25098]
[1733767844526,8.41355913,224.42,224.35,0.25098]
[1733767845397,8.41355913,224.41,224.35,0.25098]
[1733767846019,0.5381929,224.47,224.38,0.12549]
[1733767846233,8.41355913,224.44,224.38,0.25098]
[1733767846516,8.41355913,224.45,224.38,8.66453913]
[1733767846833,8.41355913,224.43,224.38,0.25098]
[1733767850726,8.41355913,224.42,224.38,0.25098]
[1733767850923,8.41355913,224.43,224.38,0.25098]
[1733767851534,8.41355913,224.44,224.38,0.25098]
[1733767853600,0.5381929,224.47,224.4,8.66453913]
[1733767853811,0.5381929,224.47,224.41,8.66453913]
[1733767854350,0.5381929,224.47,224.45,0.12549]
[1733767854707,0.5381929,224.47,224.45,0.25098]
[1733767854846,0.5381929,224.47,224.44,5.43033913]
[1733767855347,0.5381929,224.47,224.45,8.41355913]
[1733767855515,0.83510722,224.59,224.46,8.41355913]
[1733767855838,0.83510722,224.59,224.41,50.546884]
[1733767855839,8.41355913,224.54,224.48,8.41355913]
[1733767856215,8.41355913,224.55,224.48,8.41355913]
[1733767856616,8.41355913,224.56,224.49,8.41355913]
[1733767856816,8.41355913,224.56,224.5,0.12549]
[1733767857021,8.41355913,224.56,224.5,0.25098]
[1733767858834,8.41355913,224.55,224.49,0.12549]
[1733767859233,20.0,224.59,224.49,0.12549]
[1733767859438,20.0,224.59,224.52,0.25098]
[1733767859640,8.41355913,224.54,224.52,0.12549]
[1733767859962,8.41355913,224.54,224.48,0.12549]
[1733767860137,8.41355913,224.52,224.48,0.25098]
[1733767860334,0.83495809,224.58,224.48,0.25098]
[1733767860335,8.41355913,224.51,224.48,0.25098]
[1733767860549,8.41355913,224.51,224.47,1.6415]
[1733767861552,8.41355913,224.5,224.47,1.6415]
[1733767861735,8.41355913,224.49,224.44,6.2648]
[1733767861926,8.41355913,224.49,224.45,0.12549]
[1733767862126,8.41355913,224.49,224.44,6.2648]
[1733767862934,8.41355913,224.49,224.45,0.12549]
[1733767863230,8.41355913,224.5,224.45,0.12549]
[1733767863423,8.41355913,224.52,224.45,8.66453913]
[1733767863826,8.41355913,224.53,224.47,0.25098]
[1733767864960,8.41355913,224.51,224.46,0.12549]
[1733767865170,8.41355913,224.49,224.45,0.12549]
[1733767865461,8.41355913,224.51,224.45,0.12549]
[1733767865827,8.41355913,224.5,224.45,0.12549]
[1733767866349,8.41355913,224.51,224.45,0.12549]
[1733767867062,8.41355913,224.5,224.43,0.25098]
[1733767867567,8.41355913,224.49,224.43,0.25098]
[1733767868357,0.83524725,224.55,224.37,1.5476]
[1733767868539,8.41355913,224.47,224.4,8.41355913]
[1733767868737,8.41355913,224.5,224.42,8.53904913]
[1733767869339,8.41355913,224.5,224.37,1.5476]
[1733767869340,8.41355913,224.5,224.43,8.41355913]
[1733767869536,8.41355913,224.51,224.44,8.41355913]
[1733767869747,8.41355913,224.5,224.43,8.41355913]
[1733767870747,8.41355913,224.48,224.42,0.25098]
[1733767871271,8.41355913,224.47,224.41,0.25098]
[1733767871771,8.41355913,224.47,224.41,8.66453913]
[1733767871967,8.41355913,224.48,224.41,8.66453913]
[1733767873148,8.41355913,224.49,224.41,8.66453913]
[1733767874760,20.0,224.53,224.43,8.66453913]
[1733767874961,8.41355913,224.51,224.43,8.66453913]
[1733767875356,8.41355913,224.51,224.45,0.12549]
[1733767876558,0.83517813,224.55,224.46,8.66453913]
[1733767876747,8.41355913,224.56,224.49,0.12549]
[1733767877075,0.83517702,224.6,224.49,0.12549]
[1733767877076,8.41355913,224.55,224.49,0.12549]
[1733767878192,8.41355913,224.56,224.5,0.12549]
[1733767878396,8.41355913,224.55,224.5,0.12549]
[1733767878758,8.41355913,224.53,224.46,8.41355913]
[1733767878964,0.83517702,224.6,224.45,1.5733]
[1733767878965,8.41355913,224.52,224.47,0.12549]
[1733767880091,8.41355913,224.53,224.47,0.12549]
[1733767880454,8.41355913,224.53,224.46,0.12549]
[1733767880664,8.41355913,224.52,224.46,0.25098]
[1733767880963,8.41355913,224.5,224.46,0.12549]
[1733767881168,8.41355913,224.5,224.45,1.5733]
[1733767881596,8.41355913,224.49,224.45,1.5733]
[1733767885091,8.41355913,224.5,224.45,1.5733]
[1733767885297,5.0,224.6,224.45,1.5733]
[1733767885298,8.41355913,224.52,224.45,1.5733]
[1733767886325,8.41355913,224.51,224.45,1.5733]
[1733767886635,8.41355913,224.55,224.47,8.53904913]
[1733767886789,8.41355913,224.55,224.48,0.12549]
[1733767886993,0.83507711,224.6,224.48,0.12549]
[1733767886994,8.41355913,224.54,224.48,0.12549]
[1733767888960,7.95324825,224.61,224.45,1.5733]
[1733767888961,8.41355913,224.5,224.45,1.5733]
[1733767889459,8.41355913,224.52,224.46,0.12549]
[1733767889819,0.83520195,224.6,224.46,0.25098]
[1733767890021,8.41355913,224.54,224.46,8.66453913]
[1733767890830,8.41355913,224.51,224.46,0.25098]
[1733767891066,8.41355913,224.5,224.46,0.12549]
[1733767891368,8.41355913,224.49,224.46,0.12549]
[1733767891579,8.41355913,224.5,224.46,0.12549]
[1733767891857,8.41355913,224.51,224.46,0.12549]
[1733767892632,8.41355913,224.5,224.46,0.12549]
[1733767894833,8.41355913,224.48,224.45,1.5733]
[1733767895433,8.41355913,224.49,224.45,1.5733]
[1733767896052,8.41355913,224.5,224.45,1.5733]
[1733767896467,8.41355913,224.5,224.46,0.12549]
[1733767901679,8.41355913,224.5,224.45,1.5733]
[1733767901975,0.83506484,224.57,224.44,0.12549]
[1733767902175,0.83506484,224.57,224.47,8.41355913]
[1733767902396,8.41355913,224.55,224.47,8.41355913]
[1733767902738,8.41355913,224.55,224.48,1.63879]
[1733767903069,0.83510182,224.6,224.49,0.12549]
[1733767903252,8.41355913,224.55,224.49,0.12549]
[1733767904961,20.0,224.58,224.5,0.12549]
[1733767905177,8.41355913,224.56,224.5,0.12549]
[1733767906147,0.83498648,224.61,224.53,8.53904913]
[1733767906348,0.83488909,224.64,224.53,8.53904913]
[1733767906548,8.41355913,224.6,224.53,0.12549]
[1733767906980,8.41355913,224.6,224.53,0.25098]
[1733767908065,8.41355913,224.61,224.54,0.25098]
[1733767908972,8.41355913,224.61,224.55,0.12549]
[1733767909271,8.41355913,224.61,224.55,0.25098]
[1733767909649,0.8348078,224.66,224.6,8.41355913]
[1733767909855,8.41355913,224.67,224.61,0.12549]
[1733767910176,8.41355913,224.66,224.61,0.12549]
[1733767910474,8.41355913,224.65,224.59,0.12549]
[1733767910771,1.3730007,224.7,224.59,0.12549]
[1733767910772,8.41355913,224.63,224.59,0.12549]
[1733767911385,8.41355913,224.63,224.58,0.12549]
[1733767911586,8.41355913,224.61,224.56,1.5702]
[1733767911964,8.41355913,224.61,224.57,0.12549]
[1733767912261,8.41355913,224.62,224.57,0.12549]
[1733767912592,20.0,224.68,224.57,0.12549]
[1733767912792,8.41355913,224.62,224.57,0.12549]
[1733767913788,0.83477325,224.67,224.57,0.12549]
[1733767913789,8.41355913,224.65,224.59,0.12549]
[1733767913959,8.41355913,224.64,224.58,0.12549]
[1733767914165,8.41355913,224.63,224.56,1.5702]
[1733767914359,8.41355913,224.62,224.56,1.5702]
[1733767914765,8.41355913,224.62,224.57,0.12549]
[1733767915877,8.41355913,224.64,224.57,0.12549]
[1733767916188,8.41355913,224.65,224.58,0.12549]
[1733767916383,8.41355913,224.65,224.59,0.12549]
[1733767916694,8.41355913,224.65,224.59,0.25098]
[1733767917069,8.41355913,224.65,224.58,0.25098]
[1733767917295,8.41355913,224.65,224.59,0.12549]
[1733767917487,8.41355913,224.64,224.59,0.12549]
[1733767917799,8.41355913,224.65,224.59,0.25098]
[1733767918267,8.41355913,224.64,224.59,0.12549]
[1733767920385,8.41355913,224.64,224.58,0.12549]
[1733767920791,8.41355913,224.63,224.57,0.12549]
[1733767921089,8.41355913,224.61,224.56,1.5702]
[1733767921289,8.41355913,224.61,224.57,0.12549]
[1733767921494,8.41355913,224.61,224.56,1.5702]
[1733767921697,0.83478919,224.68,224.56,1.5702]
[1733767921871,8.41355913,224.61,224.56,1.5702]
[1733767923800,8.41355913,224.62,224.56,1.5702]
[1733767923968,0.83478919,224.68,224.57,8.41355913]
[1733767924176,8.41355913,224.63,224.56,9.98375913]
[1733767924368,8.41355913,224.62,224.56,1.5702]
[1733767926201,8.41355913,224.62,224.55,14.91545913]
[1733767926202,8.41355913,224.57,224.5,1.5719]
[1733767926401,8.41355913,224.54,224.5,1.5719]
[1733767926574,8.41355913,224.56,224.5,1.5719]
[1733767926777,0.83505415,224.61,224.5,1.5719]
[1733767926778,8.41355913,224.58,224.51,0.12549]
[1733767926970,8.41355913,224.58,224.51,8.53904913]
[1733767927688,8.41355913,224.58,224.51,0.25098]
[1733767927907,20.0,224.61,224.53,8.53904913]
[1733767928121,9.24842825,224.63,224.56,8.41355913]
[1733767928905,8.41355913,224.62,224.56,0.12549]
[1733767929205,8.41355913,224.61,224.56,0.12549]
[1733767929997,8.41355913,224.61,224.55,0.25098]
[1733767930305,8.41355913,224.62,224.55,8.66453913]
[1733767930680,8.41355913,224.6,224.52,8.41355913]
[1733767930879,8.41355913,224.58,224.52,0.12549]
[1733767931186,8.41355913,224.58,224.52,0.25098]
[1733767931493,8.41355913,224.57,224.5,9.98545913]
[1733767931795,8.41355913,224.59,224.51,8.41355913]
[1733767932012,8.41355913,224.6,224.53,0.12549]
[1733767932373,8.41355913,224.6,224.53,8.53904913]
[1733767932900,8.41355913,224.6,224.54,0.12549]
[1733767933391,8.41355913,224.6,224.53,0.25098]
[1733767933613,8.41355913,224.59,224.53,0.25098]
[1733767934184,8.41355913,224.59,224.51,8.66453913]
[1733767934388,0.83490583,224.58,224.51,0.25098]
[1733767934585,8.41355913,224.56,224.5,1.5719]
[1733767934836,21.5918,224.67,224.5,9.98545913]
[1733767934837,8.41355913,224.57,224.5,9.98545913]
[1733767935187,8.41355913,224.57,224.51,0.12549]
[1733767935387,8.41355913,224.56,224.51,0.12549]
[1733767935714,8.41355913,224.56,224.5,1.5719]
[1733767935889,8.41355913,224.55,224.5,1.5719]
[1733767936920,8.41355913,224.54,224.5,1.5719]
[1733767937697,0.83497102,224.61,224.5,1.5719]
[1733767937917,8.41355913,224.52,224.46,0.12549]
[1733767938113,8.41355913,224.52,224.45,16.54025913]
[1733767938304,0.83520844,224.51,224.45,8.1267]
[1733767938509,9.24876757,224.51,224.45,1.5514]
[1733767938720,8.41355913,224.5,224.45,1.5514]
[1733767939596,8.41355913,224.5,224.43,8.41355913]
[1733767939597,9.24882278,224.49,224.4,7.87633493]
[1733767939789,0.83533759,224.58,224.42,8.41355913]
[1733767939995,0.83533759,224.58,224.45,0.12549]
[1733767939996,8.41355913,224.51,224.45,0.12549]
[1733767940293,8.41355913,224.56,224.48,8.41355913]
[1733767940729,8.41355913,224.56,224.49,8.41355913]
[1733767940902,8.41355913,224.56,224.5,0.12549]
[1733767941304,0.83503734,224.61,224.5,8.66453913]
[1733767941515,8.41355913,224.57,224.5,8.66453913]
[1733767941702,8.41355913,224.56,224.5,0.25098]
[1733767943321,8.41355913,224.56,224.49,8.41355913]
[1733767943527,8.41355913,224.56,224.5,0.12549]
[1733767944036,8.41355913,224.56,224.49,0.12549]
[1733767944206,8.41355913,224.56,224.5,0.12549]
[1733767946836,8.41355913,224.56,224.48,8.66453913]
[1733767947309,8.41355913,224.55,224.48,8.66453913]
[1733767947733,8.41355913,224.55,224.48,0.25098]
[1733767949522,8.41355913,224.55,224.48,27.02098]
[1733767949848,8.41355913,224.55,224.48,0.25098]
[1733767950545,8.41355913,224.53,224.47,1.5514]
[1733767951620,20.0,224.59,224.5,0.12549]
[1733767951937,8.41355913,224.57,224.5,0.25098]
[1733767953341,8.41355913,224.59,224.52,0.12549]
[1733767953639,8.41355913,224.59,224.52,0.25098]
[1733767954926,20.83493459,224.64,224.54,0.12549]
[1733767955124,20.83493459,224.64,224.54,0.25098]
[1733767955125,8.41355913,224.6,224.54,0.25098]
[1733767956339,8.41355913,224.6,224.53,0.25098]
[1733767956537,8.41355913,224.59,224.53,0.25098]
[1733767956855,8.41355913,224.59,224.53,0.12549]
[1733767957027,8.41355913,224.59,224.52,0.25098]
[1733767957540,20.83493459,224.64,224.52,0.25098]
[1733767957868,8.41355913,224.65,224.57,8.66453913]
[1733767959251,8.41355913,224.64,224.57,6.36448]
[1733767959901,8.41355913,224.64,224.58,0.12549]
[1733767960545,8.41355913,224.65,224.58,0.12549]
[1733767961986,20.83471312,224.69,224.58,0.12549]
[1733767962196,8.41355913,224.66,224.59,0.12549]
[1733767962485,9.24829014,224.65,224.58,0.25098]
[1733767963872,8.41355913,224.64,224.58,0.12549]
[1733767964172,20.0,224.69,224.56,8.41355913]
[1733767964173,8.41355913,224.63,224.56,8.41355913]
[1733767964361,8.41355913,224.63,224.57,0.25098]
[1733767966244,8.41355913,224.64,224.57,0.25098]
[1733767966672,8.41355913,224.65,224.58,0.12549]
[1733767966971,0.83474505,224.64,224.58,0.12549]
[1733767967345,0.83476699,224.68,224.6,8.41355913]
[1733767967567,8.41355913,224.67,224.6,8.41355913]
[1733767967778,8.41355913,224.66,224.6,0.12549]
[1733767969249,8.41355913,224.67,224.61,0.12549]
[1733767970160,8.41355913,224.66,224.6,0.12549]
[1733767970379,8.41355913,224.66,224.6,0.25098]
[1733767970555,8.41355913,224.64,224.53,7.7808]
[1733767970752,9.24836618,224.63,224.56,8.41355913]
[1733767970969,9.24836618,224.63,224.55,8.41355913]
[1733767971280,9.24836618,224.63,224.56,0.12549]
[1733767971661,9.24836618,224.63,224.53,34.5508]
[1733767971972,8.41355913,224.61,224.54,8.41355913]
[1733767972141,8.41355913,224.59,224.53,7.7808]
[1733767973241,8.41355913,224.59,224.53,1.5036]
[1733767973442,8.41355913,224.6,224.53,9.91715913]
[1733767973675,0.83494622,224.59,224.53,9.91715913]
[1733767974248,9.24850535,224.59,224.53,1.5036]
[1733767974763,20.0,224.66,224.53,1.5036]
[1733767974981,8.41355913,224.59,224.53,1.5036]
[1733767975165,8.41355913,224.6,224.53,9.91715913]
[1733767975365,0.83495526,224.65,224.55,8.41355913]
[1733767975544,8.41355913,224.62,224.55,8.41355913]
[1733767975749,0.83486773,224.61,224.54,8.53904913]
[1733767976551,9.24842686,224.61,224.54,8.53904913]
[1733767976751,9.24842686,224.61,224.54,0.12549]
[1733767976752,8.41355913,224.6,224.54,0.12549]
[1733767976969,0.83495075,224.59,224.54,0.12549]
[1733767977357,20.83494948,224.67,224.54,0.12549]
[1733767977687,8.41355913,224.6,224.54,0.12549]
[1733767978050,8.41355913,224.61,224.54,8.53904913]
[1733767978285,0.83490523,224.6,224.53,9.91715913]
[1733767979657,0.83490523,224.6,224.54,8.41355913]
[1733767979854,0.83492456,224.66,224.55,0.12549]
[1733767980077,8.41355913,224.63,224.56,8.41355913]
[1733767980250,0.83483908,224.62,224.56,8.41355913]
[1733767980771,19.9218019,224.69,224.57,0.25098]
[1733767980982,8.41355913,224.64,224.57,0.25098]
[1733767981289,8.41355913,224.65,224.58,0.12549]
[1733767981466,9.24832729,224.64,224.58,0.12549]
[1733767981666,8.41355913,224.62,224.54,0.12549]
[1733767981856,0.83488142,224.61,224.55,0.12549]
[1733767982055,19.9218019,224.69,224.57,0.12549]
[1733767982056,0.83487441,224.68,224.57,0.12549]
[1733767982275,0.83487441,224.68,224.57,8.53904913]
[1733767982276,8.41355913,224.65,224.57,8.53904913]
[1733767982453,0.83478649,224.64,224.58,8.41355913]
[1733767982658,8.41355913,224.65,224.58,8.41355913]
[1733767982858,0.83476348,224.64,224.58,8.41355913]
[1733767983161,8.41355913,224.65,224.58,8.41355913]
[1733767983495,8.41355913,224.66,224.58,8.41355913]
[1733767983668,0.83472089,224.65,224.58,8.41355913]
[1733767984071,8.41355913,224.67,224.6,8.53904913]
[1733767984365,9.24828125,224.68,224.61,0.12549]
[1733767984566,0.5381929,224.7,224.61,0.12549]
[1733767984567,9.78641291,224.7,224.62,8.41355913]
[1733767986058,8.41355913,224.67,224.61,1.6398]
[1733767986289,1.37285378,224.7,224.56,32.8298]
[1733767986290,8.41355913,224.63,224.56,32.8298]
[1733767986529,8.41355913,224.6,224.55,1.5861]
[1733767986685,8.41355913,224.58,224.55,1.5861]
[1733767986882,1.5303,224.67,224.55,1.5861]
[1733767987107,8.41355913,224.56,224.5,1.5861]
[1733767987291,8.41355913,224.56,224.51,0.12549]
[1733767987491,8.41355913,224.56,224.5,1.5861]
[1733767988323,33.65423652,224.62,224.5,1.5861]
[1733767988324,9.24866053,224.55,224.5,1.5861]
[1733767988683,33.65423652,224.62,224.5,1.5861]
[1733767989020,8.41355913,224.56,224.5,1.5861]